Cogmind - Beta 13 @@@ ROGUE MODE // 2024.04.03 @ 12:16:16 Player: Shaelyn Result: Destroyed by Autobeam Turret with Autobeam Performance ------------- Evolutions (0) 0 Regions Visited (3) 600 Robots Destroyed (52) 260 Value Destroyed (995) 995 Prototype IDs (12) 240 Alien Tech Used (0) 0 Bonus (42) 42 TOTAL SCORE: 2137 Bonus ------- Follower Combat Kills 60 Friendly Fire -18 Cogmind --------- Core Integrity 0/250 Matter 300/300 Energy 99/100 System Corruption 0% Temperature Cool (6) Movement Walking (140) Location -10/Subcaves Parts ------- > --- POWER (1+1) ------ (None) > --- PROPULSION (2) --- Makeshift Leg > --- UTILITY (2) ------ Medium Storage Unit Signal Interpreter > --- WEAPON (2) ------- Powered Cannon > --- INVENTORY (10) --- Transport Network Coupler Hardened Light Armor Plating Hardened Light Armor Plating Improved Light Armor Plating Heavy Riot Gun Subdweller Beam Cannon Subdweller Beam Cannon Subdweller Machine Gun Battle Cannon Piercing Trap Peak State ------------ > --- POWER ------------ (None) > --- PROPULSION ------- Makeshift Leg Makeshift Leg > --- UTILITY ---------- Medium Storage Unit Signal Interpreter > --- WEAPON ----------- Powered Cannon > --- INVENTORY -------- Makeshift Leg Transport Network Coupler Hardened Light Armor Plating Hardened Light Armor Plating Improved Light Armor Plating Heavy Riot Gun Subdweller Beam Cannon Subdweller Machine Gun [Rating: 26] Favorites ----------- Power Light Ion Engine Engine Light Ion Engine Propulsion Light Treads Treads Light Treads Leg Makeshift Leg Wheel Subdweller Monowheel Utility Signal Interpreter Device Seismic Detector Storage Medium Storage Unit Processor Signal Interpreter Protection Hardened Light Armor Plating Weapon Light Cannon Energy Gun EM Pulse Gun Energy Cannon Beam Cannon Ballistic Gun Light Assault Rifle Ballistic Cannon Light Cannon Launcher Grenade Launcher Special Weapon Mining Laser Slashing Weapon Mining Claw Build | -11 -10 -10 -10 ------- Run | Yrd Mat Min Sub Slots Evolved . | . . . . Power . | . . . . Propulsion . | . . . . Utility . | . . . . Weapon . | . . . . Parts Attached 52 | 7 19 5 21 Power 5 | 1 1 2 1 Engine 5 | 1 1 2 1 Core . | . . . . Reactor . | . . . . Propulsion 8 | 2 . . 6 Treads 2 | 2 . . . Leg 3 | . . . 3 Wheel 3 | . . . 3 Hover . | . . . . Flight . | . . . . Utility 15 | 2 9 . 4 Device 3 | 1 2 . . Storage 7 | 1 4 . 2 Processor 1 | . 1 . . Hackware . | . . . . Protection 4 | . 2 . 2 Artifact . | . . . . Weapon 24 | 2 9 3 10 Energy Gun 2 | 1 . . 1 Energy Cannon 6 | . 1 1 4 Ballistic Gun 2 | 1 . . 1 Ballistic Cannon 4 | . 2 . 2 Launcher 4 | . 2 . 2 Special Weapon 1 | . 1 . . Impact Weapon . | . . . . Slashing Weapon 5 | . 3 2 . Piercing Weapon . | . . . . Special Melee Weapon . | . . . . Unidentified Prototypes . | . . . . Parts Lost 12 | . 2 1 9 Power 2 | . . 1 1 Propulsion 4 | . . . 4 Utility . | . . . . Weapon 6 | . 2 . 4 Highest Loss Streak 6 | . 2 1 6 To Critical Strikes . | . . . . Average Slot Usage (%) 94 | . 99 97 83 Engine 10 | . 14 11 5 Treads 20 | . 28 28 1 Leg 5 | . . . 19 Wheel 1 | . . . 3 Storage 13 | . 14 14 13 Processor 11 | . 8 14 13 Protection 1 | . 3 . . Energy Gun 3 | . 3 . 7 Energy Cannon 6 | . 4 12 4 Ballistic Gun 1 | . . . 3 Ballistic Cannon 8 | . 5 14 8 Launcher 2 | . 6 . . Slashing Weapon 4 | . 8 1 . Naked Turns . | . . . . Heaviest Build 31 | 12 29 31 30 Greatest Support 40 | 40 40 40 40 Greatest Overweight (x) 4 | . . . 4 Average Overweight (x) . | . . . . Largest Inventory Capacity 15 | 8 15 15 15 Average Capacity 11 | 7 11 15 10 Most Carried 11 | 5 9 11 11 Average Carried 7 | . 6 9 9 Final Capacity 15 | 8 15 15 10 Final Carried 11 | 2 9 11 10 Class Distribution -------------------- 81% | Mutant 13% | Derelict-Mutant 4% | Scavenger-Mutant Dominant Class ---------------- Mutant | -10/Materials Mutant | -10/Mines Derelict-Mutant | -10/Subcaves Resources | -11 -10 -10 -10 ----------- Run | Yrd Mat Min Sub Matter Collected 1076 | 307 350 71 348 Remotely . | . . . . Salvage Created 1385 | 338 673 176 198 Parts 108 | 35 50 7 16 Haulers Intercepted 2 | . 2 . . Recyclers Shooed 4 | . 3 1 . Parts Field Recycled . | . . . . Retrieved Matter . | . . . . Parts Self-Destructed 5 | . . . 5 Prevented . | . . . . Kills | -11 -10 -10 -10 ------- Run | Yrd Mat Min Sub Combat Hostiles Destroyed 26 | . 17 2 7 Melee 1 | . 1 . . Guns 6 | . 6 . . Cannons 10 | . 3 2 5 AOE 9 | . 7 . 2 Classes Destroyed 9 | 3 5 . 1 Worker 6 | 4 2 . . Builder 1 | . 1 . . Tunneler 10 | 9 . 1 . Hauler 2 | . 2 . . Recycler 4 | 1 2 1 . Watcher 3 | . 3 . . Swarmer 6 | . 6 . . Grunt 13 | . 11 2 . Subdweller 7 | . . . 7 Best Kill Streak 10 | 4 10 3 3 Combat Bots Only 6 | . 6 2 3 Max Kills in Single Turn 3 | 2 3 1 1 Gunslinging . | . . . . Exploded 3 | . 3 . 1 Melee 1 | . 1 . . Uniques/NPCs Destroyed . | . . . . Combat | -11 -10 -10 -10 -------- Run | Yrd Mat Min Sub Hostile Shots Fired 116 | . 61 10 45 Missed 29 | . 13 3 13 Damage Taken 1836 | . 611 145 1080 Core 250 | . 63 12 175 Absorbed by Shields . | . . . . Core Remaining (%) 100 | 100 . . . Volleys Fired 122 | 37 47 9 29 Largest 2 | 2 2 2 2 Hottest 140 | 60 140 95 110 Shots Fired 188 | 74 59 18 37 Gun 105 | 74 25 . 6 Cannon 63 | . 18 18 27 Launcher 17 | . 13 . 4 Special 3 | . 3 . . Kinetic 85 | 37 10 9 29 Thermal 28 | . 11 9 8 Explosive 13 | . 13 . . Electromagnetic 62 | 37 25 . . Robot Hit Streak 13 | 11 13 12 12 Robot Miss Streak 3 | 3 3 3 2 Penetration Max . | . . . . Secondary Targets . | . . . . Shots Hit Robots 134 | 44 48 16 26 Core Hits 72 | 19 38 4 11 Critical Kills . | . . . . Critical Parts Destroyed . | . . . . Critical Strikes 3 | 1 . . 2 Destroy 1 | . . . 1 Blast 1 | . . . 1 Corrupt 1 | 1 . . . Melee Attacks 36 | . 26 10 . Impact . | . . . . Slashing 36 | . 26 10 . Piercing . | . . . . Sneak Attacks 8 | . 5 3 . Combat Hostiles . | . . . . Follow-up Attacks . | . . . . Damage Inflicted 3175 | 495 1556 394 730 Guns 773 | 495 200 . 78 Cannons 854 | . 189 252 413 Explosions 1002 | . 763 . 239 Melee 498 | . 356 142 . Ramming . | . . . . Kinetic 956 | 162 136 128 530 Thermal 468 | . 144 124 200 Explosive 720 | . 720 . . Electromagnetic 533 | 333 200 . . Impact . | . . . . Slashing 498 | . 356 142 . Piercing . | . . . . Highest Corruption . | . . . . Average Corruption . | . . . . Corruption Purged . | . . . . Corruption Blocked . | . . . . Overload Shots . | . . . . Overflow Damage 79 | . 30 49 . Projectiles 15 | . . 15 . Explosions 24 | . 24 . . Melee 40 | . 6 34 . Knockbacks 4 | . 2 2 . Impact . | . . . . Kinetic 4 | . 2 2 . Secondary . | . . . . Self-Inflicted Damage 117 | . 83 . 34 Shots 6 | . 5 . 1 Rammed . | . . . . Targets Rammed . | . . . . Kicked . | . . . . Crushed . | . . . . Highest Temperature 278 | 40 278 161 . Average Temperature 58 | 19 81 64 . Received Heat Transfer 357 | . 234 51 72 Siege Activations . | . . . . Robots Corrupted 1 | 1 . . . Combat Hostiles . | . . . . Parts Fried 2 | 1 1 . . Impact Corruptions . | . . . . Robots Melted . | . . . . Combat Hostiles . | . . . . Parts Melted . | . . . . Heat Transferred 594 | . 261 259 74 Parts Sabotaged . | . . . . Parts Stolen . | . . . . Parts Stripped . | . . . . Power Chain Reactions 1 | . 1 . . Alert | -11 -10 -10 -10 ------- Run | Yrd Mat Min Sub Peak Influence 392 | 70 392 145 . Initial 55 | . 45 55 . Average 104 | 32 162 28 . Maximum Alert Level 1 | . 1 . . Low Security (%) 85 | 100 74 100 . Level 1 14 | . 25 . . Level 2 . | . . . . Level 3 . | . . . . Level 4 . | . . . . Level 5 . | . . . . High Security . | . . . . Max Security . | . . . . Squads Dispatched 3 | . 3 . . Investigation 3 | . 3 . . Extermination . | . . . . Reinforcement . | . . . . Assault . | . . . . Garrison . | . . . . Intercept . | . . . . Searches Triggered . | . . . . Construction Impeded . | . . . . Haulers Reinforced . | . . . . Active Scanning Responses . | . . . . Cargo Convoy Interrupts . | . . . . Stealth | -11 -10 -10 -10 --------- Run | Yrd Mat Min Sub Distress Signals . | . . . . Communications Jammed . | . . . . Distress Signals . | . . . . Times Spotted 39 | . 26 2 11 Peak Tracking Total 6 | . 6 2 3 Tactical Retreats 1 | . . . 1 Traps | -11 -10 -10 -10 ------- Run | Yrd Mat Min Sub Traps Triggered 3 | . 3 . . Indirectly . | . . . . Trap Hack Attempts . | . . . . Triggered . | . . . . Disarmed . | . . . . Reprogrammed . | . . . . Reused . | . . . . Traps Extracted . | . . . . Installed . | . . . . Triggered 1 | . . . 1 Most Traps Carried 1 | . . . 1 Machines | -11 -10 -10 -10 ---------- Run | Yrd Mat Min Sub Machines Disabled 4 | . 1 2 1 Max in Single Turn 1 | . 1 1 1 Machines Repaired . | . . . . Machines Dismantled . | . . . . Machines Sabotaged . | . . . . Overloaded Fab Kills . | . . . . Hacking | -11 -10 -10 -10 --------- Run | Yrd Mat Min Sub Machines Accessed 10 | . 8 1 1 Terminals 8 | . 8 . . Fabricators . | . . . . Repair Stations . | . . . . Recycling Units . | . . . . Scanalyzers . | . . . . Garrison Access . | . . . . Total Hacks 28 | . 18 1 9 Successful 14 | . 4 1 9 Failed 14 | . 14 . . Catastrophic 5 | . 5 . . Database Lockouts . | . . . . Manual 5 | . 5 . . Terminals 18 | . 18 . . Fabricators . | . . . . Repair Stations . | . . . . Recycling Units . | . . . . Scanalyzers . | . . . . Garrison Access . | . . . . Terminal Hacks 14 | . 4 1 9 Record 8 | . . . 8 Prototype ID Bank 1 | . 1 . . Open Door 1 | . . 1 . Transport Status 1 | . 1 . . Hauler Manifests 1 | . 1 . . Registered Components 1 | . 1 . . Derelict Proto ID Bank 1 | . . . 1 Fabricator Hacks . | . . . . Repair Station Hacks . | . . . . Recycling Unit Hacks . | . . . . Scanalyzer . | . . . . Garrison Access Hacks . | . . . . Unauthorized Hacks . | . . . . Terminals . | . . . . Fabricators . | . . . . Repair Stations . | . . . . Recycling Units . | . . . . Scanalyzers . | . . . . Garrison Access . | . . . . Data Cores Recovered . | . . . . Used . | . . . . Hacking Detections 8 | . 8 . . Full Trace Events 1 | . 1 . . Feedback Events . | . . . . Feedback Blocked . | . . . . Robot Schematics Acquired . | . . . . Robots Built . | . . . . Authchips . | . . . . Time . | . . . . Total Robot Build Rating . | . . . . Part Schematics Acquired . | . . . . Parts Built . | . . . . Authchips . | . . . . Time . | . . . . Total Part Build Rating . | . . . . Parts Repaired . | . . . . Time . | . . . . Parts Recycled . | . . . . Recycled Matter . | . . . . Retrieved Matter . | . . . . Retrieved Components . | . . . . Parts Scanalyzed . | . . . . Part Schematics Acquired . | . . . . Parts Damaged . | . . . . Bothacking | -11 -10 -10 -10 ------------ Run | Yrd Mat Min Sub Used RIF Installer . | . . . . Robots Hacked . | . . . . Non-combat . | . . . . Combat . | . . . . Robot Hacks Applied . | . . . . Relay Couplers Released . | . . . . Fabnet Peak Effective % . | . . . . Robots Rewired . | . . . . Allies Hacked . | . . . . Hacks Repelled . | . . . . Allies | -11 -10 -10 -10 -------- Run | Yrd Mat Min Sub Total Allies 2 | . . 2 . Largest Group 2 | . . 2 2 Highest-Rated Group 42 | . . 42 42 Highest-Rated Ally 31 | . . 31 31 Total Orders . | . . . . Ally Attacks 6 | . . 4 2 Total Damage 106 | . . 84 22 Kills 2 | . . 2 . Allies Corrupted . | . . . . Allies Melted . | . . . . Intel | -11 -10 -10 -10 ------- Run | Yrd Mat Min Sub Robot Analysis Total . | . . . . Derelict Logs Recovered 4 | . . 3 1 Drone Launches . | . . . . Drone Recoveries . | . . . . Exploration | -11 -10 -10 -10 ------------- Run | Yrd Mat Min Sub Turns Passed 5464 | 321 2276 1404 1463 Spaces Moved 3180 | 136 1256 825 963 Core 24 | 13 . . 11 Treads 2261 | 123 1256 825 57 Legs 746 | . . . 746 Wheels 149 | . . . 149 Hover . | . . . . Flight . | . . . . Fastest Speed 50 | 50 160 160 100 Average Speed 152 | 149 160 160 137 Slowest Speed 250 | 160 160 160 250 Overloaded Moves . | . . . . Propulsion Burnouts . | . . . . Robots Hopped . | . . . . Cave-ins Triggered . | . . . . Exploration Rate (%) 61 | 6 98 99 44 Regions Visited 3 Branch Regions 2 Pre-discovered Areas 3 | . . 2 1 Known Exits Taken 2 | . 1 1 . Unknown Exits Taken 1 | 1 . . . Scrap Searched 11 | . . 1 10 Spaces Dug 1 | . 1 . . Terrain Destroyed 125 | . 74 . 51 Melee 1 | . 1 . . Projectile 2 | . 1 . 1 AOE 122 | . 72 . 50 Terrain Rammed . | . . . . Walls Destroyed . | . . . . Machines Disabled . | . . . . Actions | -11 -10 -10 -10 --------- Run | Yrd Mat Min Sub Total 3524 | 187 1400 870 1067 Wait 66 | . 35 15 16 Move 3177 | 135 1255 824 963 Hop . | . . . . Pick Up 50 | 8 13 5 24 Fast Attach 4 | 1 . . 3 Attach 20 | 6 2 1 11 Detach . | . . . . Swap 28 | . 17 4 7 Drop 21 | . 5 2 14 Fire 122 | 37 47 9 29 Melee 36 | . 26 10 . Ram . | . . . . Kick . | . . . . Crush . | . . . . Escape Stasis . | . . . . Rewire . | . . . . Trap . | . . . . Miscellaneous . | . . . . Route ------- -11/Scrapyard -10/Materials (discovered 4 exits: *Mat x3 / *Min) -10/Mines (discovered 3 exits: *Mat x2 / *Sub) -10/Subcaves (discovered 2 exits: *Mat / [*Rec]) History --------- Turn | Location | Event 2 | -11/Scrapyard | Met Revision 17 31 | -11/Scrapyard | Discovered new exit (range 14) 322 | -11/Scrapyard | Entered Materials 323 | -10/Materials | Build established: Mutant 596 | -10/Materials | Discovered new exit (range 8) 659 | -10/Materials | Discovered new exit (range 16) 1060 | -10/Materials | Discovered new exit (range 14) 1157 | -10/Materials | Identified exit to Materials 1483 | -10/Materials | Discovered exit to Materials (range 8) 2597 | -10/Materials | Identified exit to Mines 2598 | -10/Materials | Entered Mines 2610 | -10/Mines | Identified exit to Subcaves 2967 | -10/Mines | Learned location of Recycling (-7) 3168 | -10/Mines | Discovered exit to Materials (range 14) 3633 | -10/Mines | Discovered exit to Materials (range 3) 3655 | -10/Mines | Met a Derelict who couldn't figure out how to use a Trap Extractor 4002 | -10/Mines | Entered Subcaves 4002 | -10/Subcaves | Accompanied by 2 allies 4007 | -10/Subcaves | Led the pair of lost Derelicts to an unsafe place 4025 | -10/Subcaves | Learned location of Storage (-7) 4098 | -10/Subcaves | Core integrity fell below 50% 4103 | -10/Subcaves | Ambushed by Subdweller buried in earth 4109 | -10/Subcaves | Core integrity fell below 20% 4147 | -10/Subcaves | Lost 6 parts (1p2n3w) 4157 | -10/Subcaves | Discovered new exit (range 16) 4186 | -10/Subcaves | Identified exit to Materials 4556 | -10/Subcaves | Visited 4L-MR0's lab 4637 | -10/Subcaves | Found Powered Cannon 4829 | -10/Subcaves | Build established: Derelict-Mutant 5253 | -10/Subcaves | Disturbed a concealed Subdweller 5259 | -10/Subcaves | Attached Powered Cannon, gained temporary slot: Power 5465 | -10/Subcaves | Discovered new exit (range 10) 5465 | -10/Subcaves | Destroyed by Autobeam Turret with Autobeam Last Messages --------------- Acquired 31 matter. Searching scrap... Found Sub. Laser. Found 27 Matter. Acquired 27 matter. Searching scrap... Found Battle Cannon. Found Flamer. Found 19 Matter. Acquired 5 matter. Searching scrap... Found Humpback. Found 33 Matter. Subatomizers dissect the Flamer. Searching scrap... Found Scrap Shield. Found Piercing Trap. Found 21 Matter. Acquired Piercing Trap. EXIT=FOUND Map ----- +----------------------------------------------------+ | #%### #??????????????????????????????????? | | %!#%#" ##???####???????????????????????????? | | #]|! ##???# ##??????????????????????????? | | |"## #??## ##?????????????????????????? | | #[## #?## #?????????????????????????? | | ### & ### #??????????????????????????? | | ## &! ## #???????????????????????????? | | #?????????????????????????????? | | ##??????????????????????????????? | | ### ###?????????????????????????????? | | # ##?## ##????????????????????????????? | | #####???### ## #????????????????????????????? | | ?????????## ### #????????????????????????????? | | ????????## ### #????????????????????????????? | | ????????# ##????????????????????????????? | | ????????## ##????????#????????????????????? | | ?????????## ###??????<#####????????????????? | | ??????????## ###???? """"#????????????????? | | ??????????## % #???? " "#????????????????? | | ???????#### ## %% ##???? t "#????????????????? | | ???????# # # #???? %#????????????????? | | ????????# # # ##??? % #????????????????? | | ????????# # #??? "?????????????????? | | ????????# ##### #???????????????????? | | ????????## ###;;% ####????????????????? | | ?????????# % ;@ %; % ###??????????????? | | ?????????## % % % #??????????????? | | ??????????## #### #??????????????? | | ???????????# ## # ; ## ##??????????????? | | ???????????# ## ##;; ^=##??????????????????? | | ???????????# % ######## %% #??????????????????? | | ???????????#% #??????? ##??????????????????? | | ???????????### #??????? #???????????????????? | | ?????????????######???????% #???????????????????? | | ?????????????????????????? ???????????????????? | | ?????????????????????????? ??????????????????? | | ??????????????????????????# ?????????????????? | | ???????????????????????????### ????????????????? | | ?????????????????????????????? #???????????????? | | ??????????????????????????????? ???????????????? | | ?????????????????????????????????????????????????? | | ?????????????????????????????????????????????????? | | ?????????????????????????????????????????????????? | | ?????????????????????????????????????????????????? | | ?????????????????????????????????????????????????? | | ?????????????????????????????????????????????????? | | ?????????????????????????????????????????????????? | | ?????????????????????????????????????????????????? | | ?????????????????????????????????????????????????? | | ?????????????????????????????????????????????????? | +----------------------------------------------------+ Best States ------------- Heat Dissipation 25 Energy Generation 15 Energy Capacity 200 Matter Stores 300 Matter Capacity 300 Sight Range 16 Terrain Scan Density 10 Armor Coverage 150 Evasion (%) 55 Recoil Reduction 2 Item Schematics ----------------- None Robot Schematics ------------------ None Fabricated ------------ Nothing Alien Tech Used ----------------- None Achievements -------------- Power Corrupts Challenges ------------ None Game ------ Seed CargoConstructChronowheel Manual? 0 Play Time 00:56:41 Cumulative 6.3 hours Start 2024.04.03 @ 11:10:57 End 2024.04.03 @ 12:16:16 Sessions 1 Manual Loads 0 Difficulty Rogue Special Mode None Game No. 6 Rogue 1 Adventurer 5 Explorer 0 Win Type - Total 0 Types 0/0/0/0/0/0/0/0/0 Lore% 14 Gallery% 10 Achievement% 9 Wizard Run 0 Options --------- Layout 2 ASCII 0 Keyboard 0 Movement Mouse Keybinds 0 Fullscreen 1 Font 24/Smallcaps Map View 50x44 Zoom Use 0% Tactical HUD 0 Map Filters NONE Filters NONE Steam X RUN: 23bfe713-f64d-45f2-aab5-97eb20283495